{"text_format":"3","workbook":"xlsx","n_sheets":29,"sheets":["Text","Scoreboard","Game Board","College","Farming","Business","Sea","Politics","Hollywood","Uranium","Moon","Instructions","Experience","OK Cards","Game Board Info","Information Lists","Movement Info","College Info","Farming Info","Business Info","Sea Info","Politics Info","Hollywood Info","Uranium Info","Moon Info","Start_Info","Players","Degrees","Squares"],"not_rendered":{"images":8,"macros":1,"defined_names":735},"read":"whole","date_system":"1900"}

{"sheet":"Text","index":0,"n_rows":1,"n_cols":1,"rows_kept":1}
["1 Opportunity Knocks Card"]

{"sheet":"Scoreboard","index":1,"n_rows":36,"n_cols":17,"rows_kept":36,"merged":[[0,3,0,4],[0,10,0,16],[10,3,10,4],[10,5,10,6],[10,7,10,8],[10,9,10,10],[10,11,10,12],[10,13,10,14]]}
[{"$nulls":3},"Board Position",{"$nulls":5},"College","Career Record"]
[null,"Player","Nickname","#","Career","Happiness","Fame","Money","Salary","Degree","Farming","Business","Sea","Politics","Hollywood","Uranium","Moon"]
[null,"Player_1","#1",1,"Board",0,0,"n/a",1000,"none",0,0,0,0,0,0,0]
[null,"Player_2","#2",1,"Board",0,0,"n/a",1000,"none",0,0,0,0,0,0,0]
[null,"Player_3","#3",1,"Board",0,0,"n/a",1000,"none",0,0,0,0,0,0,0]
[null,"Player_4","#4",1,"Board",0,0,"n/a",1000,"none",0,0,0,0,0,0,0]
[null,"Player_5","#5",1,"Board",0,0,"n/a",1000,"none",0,0,0,0,0,0,0]
[null,"Player_6","#6",1,"Board",0,0,"n/a",1000,"none",0,0,0,0,0,0,0]
[]
[]
[{"$nulls":3},{"$f":"C3","v":"#1"},null,{"$f":"C4","v":"#2"},null,{"$f":"C5","v":"#3"},null,{"$f":"C6","v":"#4"},null,{"$f":"C7","v":"#5"},null,{"$f":"C8","v":"#6"}]
[{"$nulls":3},"Opportunity ","Experience ","Opportunity ","Experience ","Opportunity ","Experience ","Opportunity ","Experience ","Opportunity ","Experience ","Opportunity ","Experience "]
{"$rows_empty":15}
[null," "]
[]
[]
[]
[]
[null,"Total Cards",null,{"$f":"COUNTA(D13:D32)","v":0},0,0,0,0,0,0,0,0,0,0,0]
[]
[]
[{"$nulls":3},"*remember to collapse the ribbon on top right"]

{"sheet":"Game Board","index":2,"n_rows":16,"n_cols":14,"rows_kept":16}
[]
[]
[]
[]
[{"$nulls":4},"Park \nBench","Opportunity \nKnocks","Rent","Politics\n$3000","Opportunity \nKnocks","Shopping \nSpree","Hollywood\n$1000","Opportunity \nKnocks","Florida \nVacation"]
[{"$nulls":4},"Opportunity \nKnocks",{"$nulls":7},"Opportunity \nKnocks"]
[{"$nulls":4},"Sea\n$100",{"$nulls":7},"Stock \nMarket"]
[{"$nulls":4},"Art \nGallery",{"$nulls":7},"Uranium\n$4000"]
[{"$nulls":4},"Opportunity \nKnocks",{"$nulls":7},"Opportunity \nKnocks"]
[{"$nulls":4},"Big \nBusiness\n$500",{"$nulls":6},"\n","Yachts \nHarbour"]
[{"$nulls":4},"Food Bills",{"$nulls":7},"Moon\n$5000"]
[{"$nulls":4},"Opportunity \nKnocks",{"$nulls":7},"Statue"]
[{"$nulls":4},"Hospital","College\n$500","Car Show","Opportunity \nKnocks","Farming\n$1000","Opportunity \nKnocks","Taxes","Opportunity \nKnocks","Payday","#4"]
[{"$nulls":12},"#1","#5"]
[{"$nulls":12},"#2","#6"]
[{"$nulls":12},"#3"]

{"sheet":"College","index":3,"n_rows":8,"n_cols":7,"rows_kept":8}
[]
[]
[]
[]
[{"$nulls":4},"2 Opportunity","6 ★","2 Opportunity"]
[{"$nulls":4},"\n",null,"2 ♥"]
[{"$nulls":5},"Lose next turn","2 ♥"]
[{"$nulls":5},"4 ♥","Start \nHere"]

{"sheet":"Farming","index":4,"n_rows":9,"n_cols":7,"rows_kept":9}
[]
[]
[]
[]
[{"$nulls":4},"6 ♥","2 ★\n4 ♥","$1,000 x roll 1 die"]
[{"$nulls":4},"$5,000",null,"2 ♥"]
[{"$nulls":4},"2 ♥",null,"1 Experience"]
[{"$nulls":4},"Lose 1/2 your Cash",null,"4 ♥"]
[{"$nulls":6},"Start \nHere"]

{"sheet":"Business","index":5,"n_rows":9,"n_cols":8,"rows_kept":9}
[]
[]
[]
[]
[{"$nulls":4},"1 Experience","Salary up $2,000","$1,000","Lose next turn"]
[{"$nulls":4},"4 ♥",null,null,"Salary up $1,000"]
[{"$nulls":4},"Go to Park Bench",null,null,"1 Opportunity"]
[{"$nulls":4},"Salary cut by 1/2",null,null,"1 Experience"]
[{"$nulls":4},"Salary up $2,000",null,null,"Start \nHere"]

{"sheet":"Sea","index":6,"n_rows":9,"n_cols":8,"rows_kept":9}
[]
[]
[]
[]
[{"$nulls":5},"4 ♥","$1,000 x roll 1 die","1 Experience"]
[{"$nulls":5},"6 ♥",null,"2 Opportunity"]
[{"$nulls":5},"Lose next turn",null,"2 ♥"]
[{"$nulls":5},"8 ♥",null,"Go to Hospital"]
[{"$nulls":7},"Start \nHere"]

{"sheet":"Politics","index":7,"n_rows":9,"n_cols":8,"rows_kept":9}
[]
[]
[]
[]
[{"$nulls":4},"2 ★\n4 ♥","6 ★","2 Experience","2 ♥"]
[{"$nulls":4},"8 ★",null,null,"4 ★"]
[{"$nulls":4},"$5,000\n 4 ★",null,null,"2 Opportunity"]
[{"$nulls":4},"Lose 1/2 ★",null,null,"Go to Park Bench"]
[{"$nulls":4},"12 ★",null,null,"Start \nHere"]

{"sheet":"Hollywood","index":8,"n_rows":9,"n_cols":7,"rows_kept":9}
[]
[]
[]
[]
[{"$nulls":4},"Salary cut by 1/2","Salary up $1,000","2 ★\n4 ♥"]
[{"$nulls":4},"10 ★ but\nlose all ♥",null,"2 Opportunity"]
[{"$nulls":4},"$1,000 x roll 1 die",null,"1 Experience"]
[{"$nulls":4},"12 ★",null,"2 ★"]
[{"$nulls":6},"Start \nHere"]

{"sheet":"Uranium","index":9,"n_rows":9,"n_cols":8,"rows_kept":9}
[]
[]
[]
[]
[{"$nulls":4},"Go to hospital","4 ♥","2 Experience","2 ♥"]
[{"$nulls":4},"$10,000",null,null,"Spend $2000 or go to Park Bench"]
[{"$nulls":4},"2 ★\n4 ♥",null,null,"Throw again"]
[{"$nulls":4},"6 ♥",null,null,"2 ♥"]
[{"$nulls":4},"$20,000",null,null,"Start \nHere"]

{"sheet":"Moon","index":10,"n_rows":11,"n_cols":7,"rows_kept":11}
[]
[]
[]
[]
[{"$nulls":4},"16 ★","2 Experience","Salary up $2,000"]
[{"$nulls":4},"10 ♥",null,"2 ★\n4 ♥"]
[{"$nulls":4},"$10,000",null,"Lose all $"]
[{"$nulls":4},"10 ★ but go to Hospital",null,"Lose all ★"]
[{"$nulls":4},"6 ★\n4 ♥",null,"6 ★"]
[{"$nulls":4},"$5,000",null,"2 ♥"]
[{"$nulls":6},"Start \nHere"]

{"sheet":"Instructions","index":11,"n_rows":16,"n_cols":2,"rows_kept":16}
["Instructions"]
["To start a new game, click the Scoreboard tab (bottom of the screen) and then click the Restart Game tab (near bottom left).\n"]
["In the Player Info tab, add the Nickname for each player (maximum of 4 letters). It is important to now click the Update Nicknames button."]
["Generally, except for cash on hand, all cards and moves are automatically added to the player's info. But, the following are tracked by each individual player manually:\n- Recording your secret success formula. Remember, your formula represents minimum amounts; it's OK to have extra happiness, fame or money.\n- Rolling the dice.\n- Keeping track of all cash on hand.\n- Trading Experience/Opportunity cards (by moving cards from player to player) and using Experience/Opportunity cards (by deleting the cards for the applicable player) in the Player Info tab. To ensure the macros work, always keep the cards at the top (under the nickname) and there are no spaces between the cards."]
["When rolling, click the applicable Player button in the Scoreboard tab.\n"]
["Use the Movement button:\n- When using an Opportunity Card to move to a Career.\n- When forced to move to the Park Bench, Hospital or Florida Vacation (not so bad)"]
["Note:\n- If you land on the same square as another player, you have the option of bumping them to the Park Bench."]
[]
["https://docs.google.com/spreadsheets/d/1fh9sz5clsKiz7AND5rcIU1KTIZcoFwWq3C5u72NaMrQ/edit#gid=0 ","Player 1 Success Formula"]
["https://docs.google.com/spreadsheets/d/1AuD5ks4E0hIRpTCygkoph57wihD1Kfb9a2HYQd1TFJs/edit#gid=1874943552 ","Player 2 Success Formula"]
["https://docs.google.com/spreadsheets/d/1nCIK1UStpIL8cRN-N6GYqL9HvZJH6NZEjMMv44xbvfs/edit#gid=1874943552 ","Player 3 Success Formula"]
["https://docs.google.com/spreadsheets/d/1VO6uGa2wMpkaLmB211z-Tcp1llXerF_jjVcQTnP7aCU/edit#gid=1874943552 ","Player 4 Success Formula"]
["https://docs.google.com/spreadsheets/d/17p-23a8eBsi6dw9DedCM_wnj1oLplLWeqFbLtkt3i1w/edit#gid=1874943552 ","Player 5 Success Formula"]
["https://docs.google.com/spreadsheets/d/1_csAzqUgPnVQJczoMJKl6moJYPvRlD2X7eUEL1qzfdw/edit#gid=1874943552 ","Player 6 Success Formula"]
[]
["A PDF file of the current Scoreboard, Game Board and Career Boards can be found at the following:\nhttps://www.dropbox.com/s/dxzirlbm9af67z2/Career%20Excel%20Game.pdf?dl=0  "]

{"sheet":"Experience","index":12,"n_rows":29,"n_cols":10,"rows_kept":29}
["Move 1 Square",{"$f":"RAND()","v":0.8354262040539453},{"$f":"INDEX($A$1:$A$28,RANK(B1,$B$1:$B$28,1)+COUNTIF($B$1:$B28,B1)-1)","v":"Move 4 Squares"},null,"Current Experience Cards","Owner",null,"Counter\n(always start new games with 1)","# Cards","Used Cards"]
["Move 1 Square",{"$f":"RAND()","v":0.035918008484849495},{"$f":"INDEX($A$1:$A$28,RANK(B2,$B$1:$B$28,1)+COUNTIF($B$1:$B29,B2)-1)","v":"Move 1 Square"},null,"Move 4 Squares","deck",null,1,1,1]
["Move 1 Square",0.719583318440866,{"$f":"INDEX($A$1:$A$28,RANK(B3,$B$1:$B$28,1)+COUNTIF($B$1:$B30,B3)-1)","v":"Move 3 Squares"},null,"Move 1 Square","deck",null,null,2]
["Move 1 Square",0.5674551305021084,{"$f":"INDEX($A$1:$A$28,RANK(B4,$B$1:$B$28,1)+COUNTIF($B$1:$B31,B4)-1)","v":"Move 2 Squares"},null,"Move 3 Squares","deck",null,null,3]
["Move 1 Square",0.04448485000937519,{"$f":"INDEX($A$1:$A$28,RANK(B5,$B$1:$B$28,1)+COUNTIF($B$1:$B32,B5)-1)","v":"Move 1 Square"},null,"Move 2 Squares","deck"]
["Move 1 Square",0.6793006404753141,{"$f":"INDEX($A$1:$A$28,RANK(B6,$B$1:$B$28,1)+COUNTIF($B$1:$B33,B6)-1)","v":"Move 3 Squares"},null,"Move 1 Square","deck"]
["Move 1 Square",0.9166538678759241,{"$f":"INDEX($A$1:$A$28,RANK(B7,$B$1:$B$28,1)+COUNTIF($B$1:$B34,B7)-1)","v":"Move 4 Squares"},null,"Move 3 Squares","deck"]
["Move 1 Square",0.1739830794325974,{"$f":"INDEX($A$1:$A$28,RANK(B8,$B$1:$B$28,1)+COUNTIF($B$1:$B35,B8)-1)","v":"Move 1 Square"},null,"Move 4 Squares","deck"]
["Move 2 Squares",0.9738495293934284,{"$f":"INDEX($A$1:$A$28,RANK(B9,$B$1:$B$28,1)+COUNTIF($B$1:$B40,B9)-1)","v":"Move 4 Squares"},null,"Move 1 Square","deck"]
["Move 2 Squares",0.15537226933207138,{"$f":"INDEX($A$1:$A$28,RANK(B10,$B$1:$B$28,1)+COUNTIF($B$1:$B41,B10)-1)","v":"Move 1 Square"},null,"Move 4 Squares","deck"]
["Move 2 Squares",0.8164967535905482,{"$f":"INDEX($A$1:$A$28,RANK(B11,$B$1:$B$28,1)+COUNTIF($B$1:$B42,B11)-1)","v":"Move 3 Squares"},null,"Move 1 Square","deck"]
["Move 2 Squares",0.11316398269515415,{"$f":"INDEX($A$1:$A$28,RANK(B12,$B$1:$B$28,1)+COUNTIF($B$1:$B43,B12)-1)","v":"Move 1 Square"},null,"Move 3 Squares","deck"]
["Move 2 Squares",0.20413250951598239,{"$f":"INDEX($A$1:$A$28,RANK(B13,$B$1:$B$28,1)+COUNTIF($B$1:$B44,B13)-1)","v":"Move 1 Square"},null,"Move 1 Square","deck"]
["Move 2 Squares",0.41477699835551574,{"$f":"INDEX($A$1:$A$28,RANK(B14,$B$1:$B$28,1)+COUNTIF($B$1:$B45,B14)-1)","v":"Move 2 Squares"},null,"Move 1 Square","deck"]
["Move 2 Squares",0.958276988596638,{"$f":"INDEX($A$1:$A$28,RANK(B15,$B$1:$B$28,1)+COUNTIF($B$1:$B46,B15)-1)","v":"Move 4 Squares"},null,"Move 2 Squares","deck"]
["Move 2 Squares",0.6361370354786438,{"$f":"INDEX($A$1:$A$28,RANK(B16,$B$1:$B$28,1)+COUNTIF($B$1:$B47,B16)-1)","v":"Move 2 Squares"},null,"Move 4 Squares","deck"]
["Move 3 Squares",0.5895703779465996,{"$f":"INDEX($A$1:$A$28,RANK(B17,$B$1:$B$28,1)+COUNTIF($B$1:$B52,B17)-1)","v":"Move 2 Squares"},null,"Move 2 Squares","deck"]
["Move 3 Squares",0.14420922693673233,{"$f":"INDEX($A$1:$A$28,RANK(B18,$B$1:$B$28,1)+COUNTIF($B$1:$B53,B18)-1)","v":"Move 1 Square"},null,"Move 2 Squares","deck"]
["Move 3 Squares",0.9060824643495063,{"$f":"INDEX($A$1:$A$28,RANK(B19,$B$1:$B$28,1)+COUNTIF($B$1:$B54,B19)-1)","v":"Move 4 Squares"},null,"Move 1 Square","deck"]
["Move 3 Squares",0.8342221447402635,{"$f":"INDEX($A$1:$A$28,RANK(B20,$B$1:$B$28,1)+COUNTIF($B$1:$B55,B20)-1)","v":"Move 4 Squares"},null,"Move 4 Squares","deck"]
["Move 3 Squares",0.557164092589598,{"$f":"INDEX($A$1:$A$28,RANK(B21,$B$1:$B$28,1)+COUNTIF($B$1:$B56,B21)-1)","v":"Move 2 Squares"},null,"Move 4 Squares","deck"]
["Move 3 Squares",0.47668846596796743,{"$f":"INDEX($A$1:$A$28,RANK(B22,$B$1:$B$28,1)+COUNTIF($B$1:$B57,B22)-1)","v":"Move 2 Squares"},null,"Move 2 Squares","deck"]
["Move 4 Squares",0.769036104157232,{"$f":"INDEX($A$1:$A$28,RANK(B23,$B$1:$B$28,1)+COUNTIF($B$1:$B69,B23)-1)","v":"Move 3 Squares"},null,"Move 2 Squares","deck"]
["Move 4 Squares",0.17991138604114087,{"$f":"INDEX($A$1:$A$28,RANK(B24,$B$1:$B$28,1)+COUNTIF($B$1:$B70,B24)-1)","v":"Move 1 Square"},null,"Move 3 Squares","deck"]
["Move 4 Squares",0.2814161051157179,{"$f":"INDEX($A$1:$A$28,RANK(B25,$B$1:$B$28,1)+COUNTIF($B$1:$B71,B25)-1)","v":"Move 2 Squares"},null,"Move 1 Square","deck"]
["Move 4 Squares",0.7020827851793773,{"$f":"INDEX($A$1:$A$28,RANK(B26,$B$1:$B$28,1)+COUNTIF($B$1:$B72,B26)-1)","v":"Move 3 Squares"},null,"Move 2 Squares","deck"]
["Move 4 Squares",0.6764977478277817,{"$f":"INDEX($A$1:$A$28,RANK(B27,$B$1:$B$28,1)+COUNTIF($B$1:$B73,B27)-1)","v":"Move 3 Squares"},null,"Move 3 Squares","deck"]
["Move 4 Squares",0.6417611418938273,{"$f":"INDEX($A$1:$A$28,RANK(B28,$B$1:$B$28,1)+COUNTIF($B$1:$B74,B28)-1)","v":"Move 2 Squares"},null,"Move 3 Squares","deck"]
[{"$nulls":4},"Move 2 Squares","deck"]

{"sheet":"OK Cards","index":13,"n_rows":29,"n_cols":9,"rows_kept":29}
["Any Career",{"$f":"RAND()","v":0.8118393276813746},{"$f":"INDEX($A$1:$A$28,RANK(B1,$B$1:$B$28,1)+COUNTIF($B$1:$B28,B1)-1)","v":"Politics"},null,"Current OK Cards","Owner","Counter\n(always start new games with 1)","# Cards","Used Cards"]
["Any Career",{"$f":"RAND()","v":0.5068348280086217},{"$f":"INDEX($A$1:$A$28,RANK(B2,$B$1:$B$28,1)+COUNTIF($B$1:$B29,B2)-1)","v":"Florida Vacation"},null,"Politics - Free","deck",1,1,1]
["Big Business",0.9640553725010116,{"$f":"INDEX($A$1:$A$28,RANK(B3,$B$1:$B$28,1)+COUNTIF($B$1:$B33,B3)-1)","v":"Uranium"},null,"Moon","deck"]
["Big Business",0.41451927776579633,{"$f":"INDEX($A$1:$A$28,RANK(B4,$B$1:$B$28,1)+COUNTIF($B$1:$B34,B4)-1)","v":"Farming"},null,"Any Career","deck"]
["Big Business",0.8827633548915781,{"$f":"INDEX($A$1:$A$28,RANK(B5,$B$1:$B$28,1)+COUNTIF($B$1:$B35,B5)-1)","v":"Politics - Free"},null,"Florida Vacation","deck"]
["College",0.6420736900421276,{"$f":"INDEX($A$1:$A$28,RANK(B6,$B$1:$B$28,1)+COUNTIF($B$1:$B41,B6)-1)","v":"Moon"},null,"College","deck"]
["College",0.9484417065526951,{"$f":"INDEX($A$1:$A$28,RANK(B7,$B$1:$B$28,1)+COUNTIF($B$1:$B42,B7)-1)","v":"Sea - Double Happiness"},null,"Big Business","deck"]
["College",0.9631552710656692,{"$f":"INDEX($A$1:$A$28,RANK(B8,$B$1:$B$28,1)+COUNTIF($B$1:$B43,B8)-1)","v":"Uranium"},null,"College","deck"]
["Farming",0.9822673667762836,{"$f":"INDEX($A$1:$A$28,RANK(B9,$B$1:$B$28,1)+COUNTIF($B$1:$B49,B9)-1)","v":"Uranium - Free"},null,"Hollywood - Free","deck"]
["Farming",0.5992411076797974,{"$f":"INDEX($A$1:$A$28,RANK(B10,$B$1:$B$28,1)+COUNTIF($B$1:$B50,B10)-1)","v":"Hollywood"},null,"Hollywood","deck"]
["Farming",0.45777202893572866,{"$f":"INDEX($A$1:$A$28,RANK(B11,$B$1:$B$28,1)+COUNTIF($B$1:$B51,B11)-1)","v":"Farming"},null,"Sea","deck"]
["Florida Vacation",0.9296030198488463,{"$f":"INDEX($A$1:$A$28,RANK(B12,$B$1:$B$28,1)+COUNTIF($B$1:$B52,B12)-1)","v":"Sea"},null,"Big Business","deck"]
["Florida Vacation",0.19392996553206865,{"$f":"INDEX($A$1:$A$28,RANK(B13,$B$1:$B$28,1)+COUNTIF($B$1:$B53,B13)-1)","v":"Big Business"},null,"Farming","deck"]
["Hollywood",0.033263876554943894,{"$f":"INDEX($A$1:$A$28,RANK(B14,$B$1:$B$28,1)+COUNTIF($B$1:$B57,B14)-1)","v":"Any Career"},null,"Farming","deck"]
["Hollywood",0.528692498421873,{"$f":"INDEX($A$1:$A$28,RANK(B15,$B$1:$B$28,1)+COUNTIF($B$1:$B58,B15)-1)","v":"Florida Vacation"},null,"Moon - Free","deck"]
["Hollywood - Free",0.200022645766061,{"$f":"INDEX($A$1:$A$28,RANK(B16,$B$1:$B$28,1)+COUNTIF($B$1:$B64,B16)-1)","v":"College"},null,"Hollywood","deck"]
["Moon",0.09398180736462414,{"$f":"INDEX($A$1:$A$28,RANK(B17,$B$1:$B$28,1)+COUNTIF($B$1:$B65,B17)-1)","v":"Big Business"},null,"Big Business","deck"]
["Moon",0.7446874705071815,{"$f":"INDEX($A$1:$A$28,RANK(B18,$B$1:$B$28,1)+COUNTIF($B$1:$B66,B18)-1)","v":"Politics"},null,"Any Career","deck"]
["Moon - Free",0.21649989616345922,{"$f":"INDEX($A$1:$A$28,RANK(B19,$B$1:$B$28,1)+COUNTIF($B$1:$B72,B19)-1)","v":"College"},null,"Politics","deck"]
["Politics",0.04026717907627397,{"$f":"INDEX($A$1:$A$28,RANK(B20,$B$1:$B$28,1)+COUNTIF($B$1:$B73,B20)-1)","v":"Any Career"},null,"Uranium","deck"]
["Politics",0.6380741585754334,{"$f":"INDEX($A$1:$A$28,RANK(B21,$B$1:$B$28,1)+COUNTIF($B$1:$B75,B21)-1)","v":"Moon"},null,"Uranium - Free","deck"]
["Politics - Free",0.05704828869097456,{"$f":"INDEX($A$1:$A$28,RANK(B22,$B$1:$B$28,1)+COUNTIF($B$1:$B80,B22)-1)","v":"Big Business"},null,"Sea - Double Happiness","deck"]
["Sea",0.7224804878165327,{"$f":"INDEX($A$1:$A$28,RANK(B23,$B$1:$B$28,1)+COUNTIF($B$1:$B81,B23)-1)","v":"Moon - Free"},null,"Uranium","deck"]
["Sea",0.4810611932441975,{"$f":"INDEX($A$1:$A$28,RANK(B24,$B$1:$B$28,1)+COUNTIF($B$1:$B82,B24)-1)","v":"Farming"},null,"College","deck"]
["Sea - Double Happiness",0.6063714500306564,{"$f":"INDEX($A$1:$A$28,RANK(B25,$B$1:$B$28,1)+COUNTIF($B$1:$B87,B25)-1)","v":"Hollywood - Free"},null,"Sea","deck"]
["Uranium",0.3375454306997777,{"$f":"INDEX($A$1:$A$28,RANK(B26,$B$1:$B$28,1)+COUNTIF($B$1:$B89,B26)-1)","v":"College"},null,"Moon","deck"]
["Uranium",0.9277334001885325,{"$f":"INDEX($A$1:$A$28,RANK(B27,$B$1:$B$28,1)+COUNTIF($B$1:$B90,B27)-1)","v":"Sea"},null,"Florida Vacation","deck"]
["Uranium - Free",{"$f":"RAND()","v":0.5652038033661598},{"$f":"INDEX($A$1:$A$28,RANK(B28,$B$1:$B$28,1)+COUNTIF($B$1:$B96,B28)-1)","v":"Hollywood"},null,"Farming","deck"]
[{"$nulls":4},"Politics","deck"]

{"sheet":"Game Board Info","index":14,"n_rows":45,"n_cols":4,"rows_kept":45}
["position","final_position","main_or_career","text"]
["1","1","Board","Payday\n\nCollect Salary as you pass…\nCollect Double your Salary if you land here."]
["33","1","Board","Payday\n\nCollect Salary as you pass…\nCollect Double your Salary if you land here."]
["2","2","Board","1 Opportunity Knocks Card"]
["34","2","Board","1 Opportunity Knocks Card"]
["3","3","Board","Pay Taxes\n\nIf Salary is \n- $3,000 or less…Pay 10% Salary\n- $3,001 to $9,999…Pay 50% Salary\n- $10,000 or more…Pay 90% Salary"]
["35","3","Board","Pay Taxes\n\nIf Salary is \n- $3,000 or less…Pay 10% Salary\n- $3,001 to $9,999…Pay 50% Salary\n- $10,000 or more…Pay 90% Salary"]
["4","4","Board","1 Opportunity Knocks Card"]
["36","4","Board","1 Opportunity Knocks Card"]
["5",5,"Board","You may start Farming on your next turn. \nCost = $1000. Free if you have Farming experience."]
["37",5,"Board","You may start Farming on your next turn. \nCost = $1000. Free if you have Farming experience."]
["6","6","Board","1 Opportunity Knocks Card"]
["38","6","Board","1 Opportunity Knocks Card"]
["7","7","Board","Automobile Show\n\nMay spend up to 1 year's salary for a new Tesla. Score 1 Happiness for each $1000 spent.\nLose 1 Happiness for \"just looking\" but players with no Happiness can look for free."]
["39","7","Board","Automobile Show\n\nMay spend up to 1 year's salary for a new car. Score 1 Happiness for each $1000 spent.\nLose 1 Happiness for \"just looking\" but players with no Happiness can look for free."]
["8",8,"Board","You may enter College on your next turn. \nCost = $500. \nEarn a regular College degree or one in Law, Medicine, Science or Engineering. Graduates who land here must roll again."]
["40",8,"Board","You may enter College on your next turn. \nCost = $500. \nEarn a regular College degree or one in Law, Medicine, Science or Engineering. Graduates who land here must roll again."]
["9","9","Board","Hospital\n\nYou are laid up until you throw a 5 or less. You may not use an Opportunity or Experience card. You may pay half your salary to the Doctor (the Bank if there is no Doctor - and if you ask Who...)."]
["41",9,"Board","Hospital\n\nYou are laid up until you throw a 5 or less. You may not use an Opportunity or Experience card. You may pay half your salary to the Doctor (the Bank if there is no Doctor - and if you ask Who...)."]
["10","10","Board","1 Opportunity Knocks Card"]
["42","10","Board","1 Opportunity Knocks Card"]
["11","11","Board","Pay Food Bills\n\nPay 1/4 of your cash-on-hand for this year's supply of groceries."]
["43","11","Board","Pay Food Bills\n\nPay 1/4 of your cash-on-hand for this year's supply of groceries."]
["12",12,"Board","You may join Big Business on your next turn. \nCost = $500. Free with a College degree or Business Experience."]
["44",12,"Board","You may join Big Business on your next turn. \nCost = $500. Free with a College degree or Business Experience."]
["13","13","Board","1 Opportunity Knocks Card"]
["14","14","Board","Art Gallery\n\nMay buy Old Masters for $3000 each. Throw 1 die and score 1 Fame times the number thrown for each picture bought. Limit 2 to a customer."]
["15",15,"Board","You may go to Sea on your next turn. \nCost = $100. Free with Sea Experience."]
["16","16","Board","1 Opportunity Knocks Card"]
["17",17,"Board","Park Bench\n\nYou are unemployed. Roll 7, 11 or doubles to move on. You may not use Opportunity Knocks or Experience Cards. May spend half your cash for a new suit of clothes before your roll to move on."]
["18","18","Board","1 Opportunity Knocks Card"]
["19","19","Board","Pay Monthly Rent Here\n\nPay 1/2 your annual Salary for this month's house payment."]
["20",20,"Board","You may run for Office (Politics) on your next turn. \nCost = $3000. Free if you have a Law degree or Political experience."]
["21","21","Board","1 Opportunity Knocks Card"]
["22","22","Board","Shopping Spree\n\nThrow 1 die to find out what your wife just spent on a shopping spree. Pay the number thrown times 10% of your cash-on-hand."]
["23",23,"Board","You may enter Hollywood on your next turn. \nCost = $1000. Free if you have Movie (Hollywood) experience."]
["24","24","Board","1 Opportunity Knocks Card"]
["25",25,"Board","Florida Vacation\n\nScore 4 Happiness when you land here and 2 each time you stay. Roll a 7 or less to stay but you may leave at any time."]
["26","26","Board","1 Opportunity Knocks Card"]
["27","27","Board","Stock Market\n\nMay buy blocks of stock for $3000 each. Throw 1 die and sell out for $1,000 times the number thrown. Throw once for each block bought. No limit on purchases."]
["28",28,"Board","You may go Prospecting (Uranium) on your next turn. \nCost = $4000. Free with an Engineering Degree or if you have Prospecting experience."]
["29","29","Board","1 Opportunity Knocks Card"]
["30","30","Board","Yacht Harbor\n\nYachts for sale. Score Happiness as follows:\n- Pay $2,000 for 4 Happiness\n- Pay $8,000 for 8 Happiness\n- Pay $16,000 for 12 Happiness"]
["31",31,"Board","You may join Moon Expedition on your next turn. \nCost = $5000. Free with an Science Degree or if you have Space experience."]
["32","32","Board","Statue in the Park\n\nMay buy statue of self for home town. Score Fame as follows:\n- Pay $4,000 for 4 Fame\n- Pay $8,000 for 10 Fame\n- Pay $12,000 for 16 Fame"]

{"sheet":"Information Lists","index":15,"n_rows":11,"n_cols":3,"rows_kept":11}
["Career","Corner Square","Pink Square"]
["n/a","n/a","n/a"]
["Farming","Hospital","Taxes"]
["College","Park Bench","Automobile Show"]
["Business","Florida Vacation","Food Bills"]
["Sea","Payday","Art Gallery"]
["Politics",null,"Rent"]
["Hollywood",null,"Shopping Spree"]
["Uranium",null,"Stock Market"]
["Moon",null,"Yacht Harbor"]
[null,null,"Statue in the Park"]

{"sheet":"Movement Info","index":16,"n_rows":22,"n_cols":5,"rows_kept":22}
["move_square","final_position","main_or_career","text"]
["Hospital",9,"Board","Hospital\n\nYou are laid up until you throw a 5 or less. You may not use an Opportunity or Experience card. You may pay half your salary to the Doctor (the Bank if there is no Doctor - and if you ask Who...)."]
["Park Bench",17,"Board","Park Bench\n\nYou are unemployed. Roll 7, 11 or doubles to move on. You may not use Opportunity Knocks or Experience Cards. May spend half your cash for a new suit of clothes before your roll to move on."]
["Florida Vacation",25,"Board","Florida Vacation\n\nScore 4 Happiness when you land here and 2 each time you stay. Roll a 7 or less to stay but you may leave at any time.","4"]
["Farming",5,"Board","You may start Farming on your next turn. \nCost = $1000. Free if you have Farming experience."]
["College",8,"Board","You may enter College on your next turn. \nCost = $500. \nEarn a regular College degree or one in Law, Medicine, Science or Engineering. Graduates who land here must roll again."]
["Business",12,"Board","You may join Big Business on your next turn. \nCost = $500. Free with a College degree or Business Experience."]
["Sea",15,"Board","You may go to Sea on your next turn. \nCost = $100. Free with Sea Experience."]
["Politics",20,"Board","You may run for Office (Politics) on your next turn. \nCost = $3000. Free if you have a Law degree or Political experience."]
["Hollywood",23,"Board","You may enter Hollywood on your next turn. \nCost = $1000. Free if you have Movie (Hollywood) experience."]
["Uranium",28,"Board","You may go Prospecting (Uranium) on your next turn. \nCost = $4000. Free with an Engineering Degree or if you have Prospecting experience."]
["Moon",31,"Board","You may join Moon Expedition on your next turn. \nCost = $5000. Free with an Science Degree or if you have Space experience."]
["Payday","1","Board","Payday\n\nCollect Salary as you pass…\nCollect Double your Salary if you land here."]
["Taxes","3","Board","Pay Taxes\n\nIf Salary is \n- $3,000 or less…Pay 10% Salary\n- $3,001 to $9,999…Pay 50% Salary\n- $10,000 or more…Pay 90% Salary"]
["Automobile Show","7","Board","Automobile Show\n\nMay spend up to 1 year's salary for a new car. Score 1 Happiness for each $1000 spent.\nLose 1 Happiness for \"just looking\" but players with no Happiness can look for free."]
["Food Bills","11","Board","Pay Food Bills\n\nPay 1/4 of your cash-on-hand for this year's supply of groceries."]
["Art Gallery","14","Board","Art Gallery\n\nMay buy Old Masters for $3000 each. Throw 1 die and score 1 Fame times the number thrown for each picture bought. Limit 2 to a customer."]
["Rent","19","Board","Pay Rent Here\n\nPay 1/2 your annual Salary for this year's house payment."]
["Shopping Spree","22","Board","Shopping Spree\n\nThrow 1 die to find out what your wife just spent on a shopping spree. Pay the number thrown times 10% of your cash-on-hand."]
["Stock Market","27","Board","Stock Market\n\nMay buy blocks of stock for $3000 each. Throw 1 die and sell out for $1,000 times the number thrown. Throw once for each block bought. No limit on purchases."]
["Yacht Harbor","30","Board","Yacht Harbor\n\nYachts for sale. Score Happiness as follows:\n- Pay $2,000 for 4 Happiness\n- Pay $8,000 for 8 Happiness\n- Pay $16,000 for 12 Happiness"]
["Statue in the Park","32","Board","Statue in the Park\n\nMay buy statue of self for home town. Score Fame as follows:\n- Pay $4,000 for 4 Fame\n- Pay $8,000 for 10 Fame\n- Pay $12,000 for 16 Fame"]

{"sheet":"College Info","index":17,"n_rows":14,"n_cols":11,"rows_kept":14}
["position","final_position","main_or_career","happiness","fame","salary","salary multiple","opportunity","experience","career experience","Text"]
[1,1,"College","4",0,0,0,0,0,0,"Fall in love… Score 4 Happiness"]
[2,2,"College",0,0,0,0,0,0,0,"Grades not high enough to pass… Lose next turn"]
["3","3","College","2",0,0,0,0,0,0,"Elected to Honour Society… 2 Happiness"]
[4,4,"College","2",0,0,0,0,0,0,"Lead Junior Prom… 2 Happiness"]
[5,5,"College",0,0,0,0,"2",0,0,"Sweetheart has rich uncle… 2 Opportunities"]
[6,6,"College",0,"6",0,0,0,0,0,"All-American athlete… 6 Fame"]
[7,"7","College",0,0,0,0,"2",0,0,"Honour graduate… 2 Opportunities"]
[8,"11","Board",0,0,0,0,0,0,"1","Pay Food Bills\n\nPay 1/4 of your cash-on-hand for this year's supply of groceries."]
[9,"12","Board",0,0,0,0,0,0,"1","You may join Big Business on your next turn. \nCost = $500. Free with a College degree or Business Experience."]
[10,"13","Board",0,0,0,0,"1",0,"1","1 Opportunity Knocks Card"]
[11,"14","Board",0,0,0,0,0,0,"1","Art Gallery\n\nMay buy Old Masters for $300 each. Throw 1 die and score 1 Fame times the number thrown for each picture bought. Limit 2 to a customer."]
["12","15","Board",0,0,0,0,0,0,"1","You may go to Sea on your next turn. \nCost = $100. Free with Sea Experience."]
[13,"16","Board",0,0,0,0,"1",0,"1","1 Opportunity Knocks Card"]

{"sheet":"Farming Info","index":18,"n_rows":16,"n_cols":11,"rows_kept":16}
["position","final_position","main_or_career","happiness","fame","salary","salary multiple","opportunity","experience","career experience","Text"]
[1,"1","Farming","2",0,0,0,0,0,0,"Beautiful Spring weather… 2 Happiness"]
[2,2,"Farming",0,0,0,0,0,"1",0,"Work on threshing crew… 1 Experience"]
["3","3","Farming","2",0,0,0,0,0,0,"Good fishing… 2 Happiness"]
[4,4,"Farming",0,0,0,0,0,0,0,"Gamble in corn. Collect $1000 x throw of one die"]
[5,5,"Farming","4","2",0,0,0,0,0,"Raise prize steer… 2 Fame, 4 Happiness"]
[6,6,"Farming","6",0,0,0,0,0,0,"Mare has twin colts… 6 Happiness"]
[7,"7","Farming",0,0,0,0,0,0,0,"Bumper crop… Collect $5000"]
[8,8,"Farming","2",0,0,0,0,0,0,"Splendid Autumn colours… 2 Happiness"]
[9,9,"Farming",0,0,0,0,0,0,0,"Hailstorm… Lose 1/2 your Cash"]
[10,"6","Board",0,0,0,0,"1",0,"1","1 Opportunity Knocks Card"]
[11,"7","Board",0,0,0,0,0,0,"1","Automobile Show\n\nMay spend up to 1 year's salary for a new car. Score 1 Happiness for each $1000 spent.\nLose 1 Happiness for \"just looking\" but players with no Happiness can look for free."]
["12","8","Board",0,0,0,0,0,0,"1","You may enter College on your next turn. \nCost = $500. \nEarn a regular College degree or one in Law, Medicine, Science or Engineering. Graduates who land here must roll again."]
[13,"9","Board",0,0,0,0,0,0,"1","Hospital\n\nYou are laid up until you throw a 5 or less. You may not use an Opportunity or Experience card. You may pay half your salary to the Doctor (the Bank if there is no Doctor - and if you ask Who...)."]
[14,"10","Board",0,0,0,0,"1",0,"1","1 Opportunity Knocks Card"]
[15,"11","Board",0,0,0,0,0,0,"1","Pay Food Bills\n\nPay 1/4 of your cash-on-hand for this year's supply of groceries."]

{"sheet":"Business Info","index":19,"n_rows":18,"n_cols":11,"rows_kept":18}
["position","final_position","main_or_career","happiness","fame","salary","salary multiple","opportunity","experience","career experience","Text"]
[1,"1","Business",0,0,0,0,0,"1",0,"Learning Business… 1 Experience "]
[2,2,"Business",0,0,0,0,"1",0,0,"Lunch with boss… 1 Opportunity"]
["3","3","Business",0,0,"1000",0,0,0,0,"Boss likes you… Salary up $1,000"]
[4,4,"Business",0,0,0,0,0,0,0,"Argue with Boss… Lose next turn"]
[5,5,"Business",0,0,0,0,0,0,0,"Invent new production plan… Collect bonus $2,000"]
[6,6,"Business",0,0,"2000",0,0,0,0,"Promotion to front office… Salary up $2,000"]
[7,"7","Business",0,0,0,0,0,"1",0,"Swing big deal… 1 Experience Card"]
[8,8,"Business","4",0,0,0,0,0,0,"Gorgeous secretary… 4 Happiness"]
[9,"17","Board",0,0,0,"0",0,0,0,"Too ambitious… Go to Park Bench"]
[10,10,"Business",0,0,0,".5",0,0,0,"Business slump… Salary cut by 1/2"]
[11,11,"Business",0,0,"3000",0,0,0,0,"Elected to Board of Directors… Salary up $3,000"]
["12","13","Board",0,0,0,0,"1",0,"1","1 Opportunity Knocks Card"]
[13,"14","Board",0,0,0,0,0,0,"1","Art Gallery\n\nMay buy Old Masters for $300 each. Throw 1 die and score 1 Fame times the number thrown for each picture bought. Limit 2 to a customer."]
[14,"15","Board",0,0,0,0,0,0,"1","You may go to Sea on your next turn. \nCost = $100. Free with Sea Experience."]
[15,"16","Board",0,0,0,0,"1",0,"1","1 Opportunity Knocks Card"]
[16,"17","Board",0,0,0,0,0,0,"1","Park Bench\n\nYou are unemployed. Roll 7, 11 or doubles to move on. You may not use Opportunity Knocks or Experience Cards. May spend half your cash for a new suit of clothes before your roll to move on."]
[17,"18","Board",0,0,0,0,"1",0,"1","1 Opportunity Knocks Card"]

{"sheet":"Sea Info","index":20,"n_rows":16,"n_cols":11,"rows_kept":16}
["position","final_position","main_or_career","happiness","fame","salary","salary multiple","opportunity","experience","career experience","Text"]
[1,"9","Board",0,0,0,0,0,0,0,"Sea-sick 1st day out… Go to Hospital"]
[2,2,"Sea","2",0,0,0,0,0,0,"See sights of Buenos Aires… 2 Happiness"]
["3","3","Sea",0,0,0,0,"2",0,0,"Meet famous traveler… 2 Opportunities"]
[4,4,"Sea",0,0,0,0,0,"1",0,"Bad storm… 1 Experience Card"]
[5,5,"Sea",0,0,0,0,0,0,0,"Find buried treasure… Collect $1,000 x throw of one die"]
[6,6,"Sea","4",0,0,0,0,0,0,"Land at Tahiti… 4 Happiness"]
[7,"7","Sea","6",0,0,0,0,0,0,"Swim in tropical lagoon… 6 Happiness"]
[8,8,"Sea",0,0,0,0,0,0,0,"Go beachcombing… Lose next turn"]
[9,9,"Sea","8",0,0,0,0,0,0,"TERRIFIC shore-leave in Pango-Pango… 8 Happiness"]
[10,"18","Board",0,0,0,0,"1",0,"1","1 Opportunity Knocks Card"]
[11,"19","Board",0,0,0,0,0,0,"1","Pay Rent Here\n\nPay 1/2 your annual Salary for this year's house payment."]
["12","20","Board",0,0,0,0,0,0,"1","You may run for Office (Politics) on your next turn. \nCost = $3000. Free if you have a Law degree or Political experience."]
[13,"21","Board",0,0,0,0,"1",0,"1","1 Opportunity Knocks Card"]
[14,"22","Board",0,0,0,0,0,0,"1","Shopping Spree\n\nThrow 1 die to find out what your wife just spent on a shopping spree. Pay the number thrown times 10% of your cash-on-hand."]
[15,"23","Board",0,0,0,0,0,0,"1","You may enter Hollywood on your next turn. \nCost = $1000. Free if you have Movie (Hollywood) experience."]

{"sheet":"Politics Info","index":21,"n_rows":18,"n_cols":11,"rows_kept":18}
["position","final_position","main_or_career","happiness","fame","salary","salary multiple","opportunity","experience","career experience","Text"]
[1,"17","Board",0,0,0,0,0,0,0,"Lose in Primaries… Go to Park Bench"]
[2,2,"Politics",0,0,0,0,"2",0,0,"Lunch with royalty… 2 Opportunity Cards"]
["3","3","Politics",0,"4",0,0,0,0,0,"Oppose crime… 4 Fame"]
[4,4,"Politics","2",0,0,0,0,0,0,"Judge Beauty Contest… 2 Happiness"]
[5,5,"Politics",0,0,0,0,0,"2",0,"Ring 1000 doorbells… 2 Experience Cards"]
[6,6,"Politics",0,"6",0,0,0,0,0,"Sign six treaties… 6 Fame"]
[7,"7","Politics","4","2",0,0,0,0,0,"Appointed Supreme Court… 2 Fame, 4 Happiness"]
[8,8,"Politics",0,"8",0,0,0,0,0,"Conduct investigation… 8 Fame"]
[9,9,"Politics",0,"4",0,0,0,0,0,"Sell LIFE story… Collect $5,000 and 4 Fame"]
[10,10,"Politics",0,"half",0,0,0,0,0,"Caught with mink… Lose 1/2 your Fame"]
[11,11,"Politics",0,"12",0,0,0,0,0,"Win by a landslide…12 Fame "]
["12","21","Board",0,"0",0,0,"1",0,"1","1 Opportunity Knocks Card"]
[13,"22","Board",0,0,0,0,0,0,"1","Shopping Spree\n\nThrow 1 die to find out what your wife just spent on a shopping spree. Pay the number thrown times 10% of your cash-on-hand."]
[14,"23","Board",0,0,0,0,0,0,"1","You may enter Hollywood on your next turn. \nCost = $1000. Free if you have Movie (Hollywood) experience."]
[15,"24","Board",0,0,0,0,"1",0,"1","1 Opportunity Knocks Card"]
[16,"25","Board","4",0,0,0,0,0,"1","Florida Vacation\n\nScore 4 Happiness when you land here and 2 each time you stay. Roll a 7 or less to stay but you may leave at any time."]
[17,"26","Board",0,0,0,0,"1",0,"1","1 Opportunity Knocks Card"]

{"sheet":"Hollywood Info","index":22,"n_rows":16,"n_cols":11,"rows_kept":16}
["position","final_position","main_or_career","happiness","fame","salary","salary multiple","opportunity","experience","career experience","Text"]
[1,1,"Hollywood",0,"2",0,0,0,0,0,"Pose for calendar… 2 Fame"]
[2,2,"Hollywood",0,0,0,0,0,"1",0,"Date with star…  1 Experience Card"]
["3","3","Hollywood",0,0,0,0,"2",0,0,"Director likes you… 2 Opportunities"]
[4,4,"Hollywood","2","6",0,0,0,0,0,"Marry foreign Prince(ss)… 6 Fame, 2 Hearts"]
[5,5,"Hollywood",0,0,"1000",0,0,0,0,"TV contract… Salary up $1,000"]
[6,6,"Hollywood",0,0,0,".5",0,0,0,"Fan mail drops off slightly… Cut salary by 1/2 "]
[7,"7","Hollywood","zero","10",0,0,0,0,0,"Scandal… score 10 Fame but lose ALL your Happiness"]
[8,8,"Hollywood",0,0,"1000",0,0,0,0,"Reach stardom… salary up $1,000 x throw of one die"]
[9,9,"Hollywood",0,"12",0,0,0,0,0,"Win Oscar… 12 Fame"]
[10,"26","Board",0,0,0,0,"1",0,"1","1 Opportunity Knocks Card"]
[11,"27","Board",0,0,0,0,0,0,"1","Stock Market\n\nMay buy blocks of stock for $3000 each. Throw 1 die and sell out for $1,000 times the number thrown. Throw once for each block bought. No limit on purchases."]
["12","28","Board",0,0,0,0,0,0,"1","You may go Prospecting (Uranium) on your next turn. \nCost = $4000. Free with an Engineering Degree or if you have Prospecting experience."]
[13,"29","Board",0,0,0,0,"1",0,"1","1 Opportunity Knocks Card"]
[14,"30","Board",0,0,0,0,0,0,"1","Yacht Harbor\n\nYachts for sale. Score Happiness as follows:\n- Pay $2,000 for 4 Happiness\n- Pay $8,000 for 8 Happiness\n- Pay $16,000 for 12 Happiness"]
[15,"31","Board",0,0,0,0,0,0,"1","You may join Moon Expedition on your next turn. \nCost = $5000. Free with an Science Degree or if you have Space experience."]

{"sheet":"Uranium Info","index":23,"n_rows":18,"n_cols":11,"rows_kept":18}
["position","final_position","main_or_career","happiness","fame","salary","salary multiple","opportunity","experience","career experience","Text"]
[1,1,"Uranium","2",0,0,0,0,0,0,"Scenery is beautiful… 2 Happiness"]
[2,2,"Uranium",0,0,0,0,0,0,0,"Fast burro… Throw again"]
["3","3","Uranium","0",0,0,0,0,0,0,"Lose 1/2 your gear in avalance - spend $2000 more or go to Park Bench."]
[4,4,"Uranium","2",0,0,0,0,0,0,"See rare butterfly… 2 Happiness"]
[5,5,"Uranium","0",0,0,0,0,"2",0,"Pick & shovel work… 2 Experience Cards"]
[6,6,"Uranium","4",0,0,0,0,0,0,"Breathless view of the Andes… 4 Happiness"]
[7,"9","Board",0,0,0,0,0,0,0,"Fall off cliff… Go to Hospital"]
[8,8,"Uranium",0,0,0,0,0,0,0,"Find small lode of precious stones… Collect $10,000"]
[9,9,"Uranium","4","2",0,0,0,0,0,"Find Inca ruins… 2 Fame, 4 Happiness"]
[10,10,"Uranium","6",0,0,0,0,0,0,"Climb famous peak… 6 Happiness"]
[11,11,"Uranium",0,0,0,0,0,0,0,"Find rich uranium ore… Collect $20,000"]
["12","29","Board",0,0,0,0,"1",0,"1","1 Opportunity Knocks Card"]
[13,"30","Board",0,0,0,0,0,0,"1","Yacht Harbor\n\nYachts for sale. Score Happiness as follows:\n- Pay $2,000 for 4 Happiness\n- Pay $8,000 for 8 Happiness\n- Pay $16,000 for 12 Happiness"]
[14,"31","Board",0,0,0,0,0,0,"1","You may join Moon Expedition on your next turn. \nCost = $5000. Free with an Science Degree or if you have Space experience."]
[15,"32","Board",0,0,0,0,0,0,"1","Statue in the Park\n\nMay buy statue of self for home town. Score Fame as follows:\n- Pay $4,000 for 4 Fame\n- Pay $8,000 for 10 Fame\n- Pay $12,000 for 16 Fame"]
[16,"1","Board",0,0,0,0,0,0,"1","Payday\n\nCollect Salary as you pass…\nCollect Double your Salary if you land here."]
[17,"2","Board",0,0,0,0,"1",0,"1","1 Opportunity Knocks Card"]

{"sheet":"Moon Info","index":24,"n_rows":20,"n_cols":11,"rows_kept":20}
["position","final_position","main_or_career","happiness","fame","salary","salary multiple","opportunity","experience","career experience","Text"]
[1,1,"Moon",2,0,0,0,0,0,0,"Ship is Beautiful...\n2 Happiness"]
[2,2,"Moon",0,6,0,0,0,0,0,"Successful take-off...\n6 Fame"]
[3,3,"Moon",0,"zero",0,0,0,0,0,"Lose all your nerve…\n& all your Fame"]
[4,4,"Moon",0,0,0,0,0,0,0,"Ship explodes…\nLose all your cash"]
[5,5,"Moon","4","2",0,0,0,0,0,"Rescue stewardess from jammed airlock…\n2 Fame and 4 Happiness"]
[6,6,"Moon",0,0,"2000",0,0,0,0,"Promotion for bravery…\nSalary up $2000"]
[7,7,"Moon",0,0,0,0,0,"2",0,"Crash landing…\n2 Experience Cards"]
[8,8,"Moon",0,"16",0,0,0,0,0,"You are the first Human to land on the Moon…\n16 Fame"]
[9,9,"Moon","10",0,0,0,0,0,0,"Learn the secret of moonshine…\n10 Happiness"]
[10,10,"Moon",0,0,0,0,0,0,0,"Find gold dust in moon crater…\nCollect $10,000"]
[11,"9","Board","0","10",0,0,0,0,0,"Jump over mountain…\n10 Fame…\nbut go to the Hospital"]
[12,12,"Moon","4","6",0,0,0,0,0,"Sucessful landing…\n6 Fame and 4 Happiness"]
[13,13,"Moon",0,0,0,0,0,0,0,"Sell moon relic to Museum…\nCollect $5000"]
[14,2,"Board",0,0,0,0,"1",0,"1","1 Opportunity Knocks Card"]
[15,3,"Board",0,0,0,0,0,0,"1","Pay Taxes\n\nIf Salary is \n- $3,000 or less…Pay 10% Salary\n- $3,001 to $9,999…Pay 50% Salary\n- $10,000 or more…Pay 90% Salary"]
[16,4,"Board",0,0,0,0,"1",0,"1","1 Opportunity Knocks Card"]
[17,5,"Board",0,0,0,0,0,0,"1","You may start Farming on your next turn. \nCost = $1000. Free if you have Farming experience."]
[18,6,"Board",0,0,0,0,"1",0,"1","1 Opportunity Knocks Card"]
[19,7,"Board",0,0,0,0,0,0,"1","Automobile Show\n\nMay spend up to 1 year's salary for a new car. Score 1 Happiness for each $1000 spent.\nLose 1 Happiness for \"just looking\" but players with no Happiness can look for free."]

{"sheet":"Start_Info","index":25,"n_rows":58,"n_cols":15,"rows_kept":58}
["nickname1",1,"Board",0,0,"n/a",1000,"none",0,0,0,0,0,0,0]
["nickname2",1,"Board",0,0,"n/a",1000,"none",0,0,0,0,0,0,0]
["nickname3",1,"Board",0,0,"n/a",1000,"none",0,0,0,0,0,0,0]
["nickname4",1,"Board",0,0,"n/a",1000,"none",0,0,0,0,0,0,0]
["nickname5",1,"Board",0,0,"n/a",1000,"none",0,0,0,0,0,0,0]
["nickname6",1,"Board",0,0,"n/a",1000,"none",0,0,0,0,0,0,0]
{"$rows_empty":24}
["deck"]
["deck"]
["deck"]
["deck"]
["deck"]
["deck"]
["deck"]
["deck"]
["deck"]
["deck"]
["deck"]
["deck"]
["deck"]
["deck"]
["deck"]
["deck"]
["deck"]
["deck"]
["deck"]
["deck"]
["deck"]
["deck"]
["deck"]
["deck"]
["deck"]
["deck"]
["deck"]
["deck"]

{"sheet":"Players","index":26,"n_rows":7,"n_cols":2,"rows_kept":7}
["Players","Nicknames"]
["Player 1","Mike"]
["Player 2","Rhonda"]
["Player 3","Bill"]
["Player 4","George"]
["Player 5","Carey"]
["Player 6","Francisca"]

{"sheet":"Degrees","index":27,"n_rows":6,"n_cols":1,"rows_kept":6}
["Degrees"]
["College"]
["Law"]
["Medicine"]
["Science"]
["Engineering"]

{"sheet":"Squares","index":28,"n_rows":20,"n_cols":1,"rows_kept":20}
["Move "]
["Hospital"]
["Park Bench"]
["Florida Vacation"]
["Farming"]
["College"]
["Business"]
["Sea"]
["Politics"]
["Hollywood"]
["Uranium"]
["Moon"]
[]
[]
["Full List of Degrees Pasted Under Degrees (in the Degrees tab) at beginning of the game."]
["College"]
["Law"]
["Medicine"]
["Science"]
["Engineering"]